{"text_format":"3","workbook":"xlsx","n_sheets":1,"sheets":["BK og klassifikasjon"],"not_rendered":{"defined_names":1},"read":"whole","date_system":"1900"}

{"sheet":"BK og klassifikasjon","index":0,"n_rows":377,"n_cols":13,"rows_kept":377,"merged":[[1,4,104,4],[1,5,21,5],[22,5,30,5],[31,5,37,5],[38,5,39,5],[40,5,58,5],[59,5,67,5],[68,5,73,5],[74,5,80,5],[81,5,85,5],[86,5,93,5],[94,5,96,5],[97,5,102,5],[103,5,104,5],[105,4,155,4],[105,5,125,5],[126,5,141,5],[142,5,148,5],[149,5,155,5],[156,4,316,4],[156,5,181,5],[182,5,206,5],[207,5,236,5],[237,5,279,5],[280,5,305,5],[306,5,316,5],[317,4,342,4],[317,5,320,5],[321,5,338,5],[339,5,342,5],[343,4,376,4],[343,5,357,5],[358,5,367,5],[368,5,371,5],[372,5,376,5]]}
[{"$nulls":3},"Klassifikasjon - kode","Funksjon","Underfunksjon","Prosess","Stikkord","B/K","Frist for kassasjon","Bevaringsformål","Personopplysningsloven","Begrunnelse - forskrift, vedtak mv."]
["A","a","01",{"$f":"A2&\".\"&B2&\".\"&C2","v":"A.a.01"},"Internadministrasjon","Styring og utvikling av virksomheten","Styring av virksomheten fra overordnede organer","Departementets direktiver og styring, tildelingsbrev, styringsdialog","B",{"$nulls":3},"Riksarkivarens forskrift del II"]
["A","a","02",{"$f":"A3&\".\"&B3&\".\"&C3","v":"A.a.02"},null,null,"Utarbeide og vedlikeholde strategi og plan","Strategidokument, virksomhetsplan, årsplan/flerårsplan, handlingsplan, arbeidsplan, årshjul, innspill/høring, saksfremlegg","B",{"$nulls":3},"Riksarkivarens forskrift del II"]
["A","a","03","A.a.03",null,null,"Utarbeide og vedlikeholde interne instrukser og retningslinjer og andre styrende dokumenter","Utredning, saksfremlegg, retningslinjer, regelverk, informasjon","B",{"$nulls":3},"Riksarkivarens forskrift del II"]
["A","a","04","A.a.04",null,null,"Organisere strategisk samarbeid","Invitasjon, intensjonsbrev, partneravtale, samarbeidsavtale, konsortiumavtale, endringsavtale, mandat/formål, handlingsplan, referat, budsjett, tildelingsbrev","B",{"$nulls":3},"Riksarkivarens forskrift del II"]
["A","a","05","A.a.05",null,null,"Etablere og endre organisasjonsstruktur","Plan, organisasjonskart, utredning, evaluering, omorganisering","B",{"$nulls":3},"Riksarkivarens forskrift del II"]
["A","a","06","A.a.06",null,null,"Utrede og evaluere ledelses- og styringsstruktur","Myndighets-, oppgave- og ansvarsfordeling, delegering, delegeringsmatrise, utredning, evaluering","B",{"$nulls":3},"Riksarkivarens forskrift del II"]
["A","a","07","A.a.07",null,null,"Administrere og vedlikeholde medlemmer til styrer, råd, utvalg og egne nemnder","Oppnevning","B",{"$nulls":3},"Riksarkivarens forskrift del II"]
["A","a","08","A.a.08",null,null,"Avholde møter i styrer, råd, utvalg og egne nemnder","Innkalling, saksdokumenter, referat/protokoll, orientering om vedtak","B",{"$nulls":3},"Riksarkivarens forskrift del II"]
["A","a","09","A.a.09",null,null,"Avholde møter i fora og nettverk","Innkalling, saksdokumenter, referat, informasjon/tilråding til besluttende myndighet","K","10 år",null,null,"Kortvarig administrativ interesse"]
["A","a","10","A.a.10",null,null,"Samarbeide med studentparlament /studentråd/studentutvalg","Referat, avtale","B",null,"F1"]
["A","a","11","A.a.11",null,null,"Utarbeide forslag og innspill til statsbudsjett","Referat, innspill","B",{"$nulls":3},"Riksarkivarens forskrift del II"]
["A","a","12","A.a.12",null,null,"Utarbeide og vedlikeholde kvalitetssystem","Systembeskrivelse, rutiner og retningslinjer, revisjon, rapport","B",{"$nulls":3},"Riksarkivarens forskrift del II"]
["A","a","13","A.a.13",null,null,"Utarbeide og vedlikeholde internkontroll","Systembeskrivelse, rutiner og retningslinjer, revisjon, rapport","B",{"$nulls":3},"Riksarkivarens forskrift del II"]
["A","a","14","A.a.14",null,null,"Håndtere avvik","Avvik fra gjeldende regler, rutiner og prosedyrer - registrering, oppfølging","K","10 år",null,null,"Riksarkivarens forskrift del II"]
["A","a","15","A.a.15",null,null,"Gjennomføre internkontroll","Vurdering av rutiner, evaluering av gjeldende praksis","B",{"$nulls":3},"Riksarkivarens forskrift del II"]
["A","a","16","A.a.16",null,null,"Behandle og følge opp revisjon","Revisjonsrapport, oppfølging av anbefalinger og vedtak","B",{"$nulls":3},"Riksarkivarens forskrift del II"]
["A","a","17","A.a.17",null,null,"Behandle og følge opp tilsyn","Tilsynsrapport, oppfølging av anbefalinger og vedtak","B",{"$nulls":3},"Riksarkivarens forskrift del II"]
["A","a","18","A.a.18",null,null,"Administrere høringer","Høringsbrev, høringsnotat, vurdering, innspill, høringsuttalelse","B",null,"F1"]
["A","a","19","A.a.19",null,null,"Planlegge og gjennomføre interne prosjekter","Mandat, oppnevning av styringsgruppe, prosjektplan, tidsplan, risiko- og sårbarhetsanalyse (ROS), vurdering av personvernkonsekvenser (Data Protection Impact Assessment, DPIA), endringsmelding, budsjett, prosjektroller, ressursavtale, kontrakt, referat, rapport","B",{"$nulls":3},"Riksarkivarens forskrift del II"]
["A","a","20","A.a.20",null,null,"Planlegge og gjennomføre prosessforbedring","Kartlegging, tiltak, forankring, prosessdesign, risiko- og sårbarhetsanalyse (ROS), vurdering av personvernkonsekvenser (Data Protection Impact Assessment, DPIA), automasjon","B",null,"F2"]
["A","a","21","A.a.21",null,null,"Rapportere","Statistikk, rapporter/nøkkeltall til ulike interessenter, rapport til Riksrevisjonen","B",{"$nulls":3},"Riksarkivarens forskrift del II"]
["A","b","01","A.b.01",null,"Økonomi","Utarbeide budsjett","Satsningsforslag til departement, foreløpig tildeling, orientering om statsbudsjett, tildelingsbrev, budsjettrammer, budsjettinnspill, rapport, rammeendringer, supplerende tildelingsbrev, intern fordeling, budsjettforslag, revidert budsjett, vedtatt budsjett","B",{"$nulls":3},"Riksarkivarens forskrift del II"]
["A","b","02","A.b.02",null,null,"Gjennomføre internkontroll for økonomiområdet","Vurdering av rutiner, evaluering av gjeldende praksis, avstemming, årsoppgjør","B",{"$nulls":3},"Riksarkivarens forskrift del II"]
["A","b","03","A.b.03",null,null,"Utføre daglig drift","Daglig inntektsføring, hovedbok, korrigering og avstemming, merverdiavgift","K","5 år",null,null,"Riksarkivarens forskrift del II"]
["A","b","04","A.b.04",null,null,"Gjennomføre bank og betaling","Grunnlag, godkjenning, utbetaling, kapitalvarer, innførselsdeklarasjoner","K","10 år",null,null,"Riksarkivarens forskrift del II, bokføringsforskriften, administrativt behov utover bokføringsforskriften"]
["A","b","05",{"$f":"A27&\".\"&B27&\".\"&C27","v":"A.b.05"},null,null,"Gjennomføre bank og betaling - EU-transaksjoner","Grunnlag, godkjenning, utbetaling","K","15 år",null,null,"Bokføringsforskriften, med en sikkerhetsmargin da EUs prosjektkommisjoner kan behøve mer tid for sluttoppgjør"]
["A","b","06","A.b.06",null,null,"Håndtere faktura","Inngående faktura, utgående faktura, fakturagrunnlag","K","10 år",null,null,"Riksarkivarens forskrift del II, bokføringsforskriften, administrativt behov utover bokføringsforskriften"]
["A","b","07","A.b.07",null,null,"Betale ut lønn","Avtale, bilag, utbetaling","K","10 år",null,null,"Riksarkivarens forskrift del II, bokføringsforskriften, administrativt behov utover bokføringsforskriften"]
["A","b","08","A.b.08",null,null,"Håndtere refusjon","Grunnlag, godkjenning, utbetaling","K","10 år",null,null,"Riksarkivarens forskrift del II, bokføringsforskriften, administrativt behov utover bokføringsforskriften"]
["A","b","09","A.b.09",null,null,"Rapportere innenfor økonomiområdet","Årsrapport, likviditetsrapport, tertialrapport","B",{"$nulls":3},"Riksarkivarens forskrift del II"]
["A","c","01","A.c.01",null,"Personalpolitikk og arbeidsmiljø","Utarbeide personalpolitikk ","Utredning, saksfremlegg, Charter and Code (The European Charter for Researchers and Code of Conduct for the Recruitment of Researchers), tiltaksavtale","B",{"$nulls":3},"Riksarkivarens forskrift del II"]
["A","c","03","A.c.03",null,null,"Organisere samarbeid mellom arbeidsgiver og arbeidstakerorganisasjoner ","Oppnevning, informasjon, drøfting, forhandling, særavtale, referat","B",{"$nulls":3},"Riksarkivarens forskrift del II"]
["A","c","04","A.c.04",null,null,"Kartlegge arbeidsmiljø ","Handlingsplan, kartlegging, vernerunde, rapport, tiltaksrapport","B",null,null,"Personopplysninger beskyttes","Riksarkivarens forskrift del II"]
["A","c","05","A.c.05",null,null,"Utføre velferdstiltak ","Velferdskomité, utlysning av midler, søknad, tildeling","K","10 år",null,null,"Riksarkivarens forskrift del II"]
["A","c","06","A.c.06",null,null,"Gjennomføre kompetanseutvikling ","Kartlegging av kompetanse, kartlegging av kompetansebehov, plan for kompetanseutvikling, tiltak, søknad om midler, tildeling, rapport","B",null,null,"Personopplysninger beskyttes","Riksarkivarens forskrift del II"]
["A","c","07",{"$f":"A37&\".\"&B37&\".\"&C37","v":"A.c.07"},null,null,"Forberede lønnsforhandlinger","Krav, statistikk, leders anbefaling","K","10 år",null,"Personopplysninger beskyttes","Riksarkivarens forskrift del II"]
["A","c","08","A.c.08",null,null,"Gjennomføre lønnsforhandlinger ","Møteinnkalling, protokoll, informasjon til ansatt, tilbud, voldgiftsbehandling","B",null,null,"Personopplysninger beskyttes","Riksarkivarens forskrift del II"]
["A","d","01","A.d.01",null,"Rekruttering og ansettelse av personale","Rekruttere","Behovskartlegging, ressursplanlegging, kapasitetskartlegging, oppdragsbekreftelse, utlysning, offentlig søkerliste, utvidet søkerliste, søknad med CV for den som ansettes, fortrinnsrett, trekk av søknad, arbeidstillatelse, oppnevning av komité, habilitetserklæring, vurdering, merknad til vurdering, innstilling, protokoll","B",null,null,"Personopplysninger beskyttes","Riksarkivarens forskrift del II"]
["A","d","02","A.d.02",null,null,"Ansette","Ansettelsesbrev, arbeidsavtale, forhandling av lønn og andre vilkår, ansiennitetsberegning, politiattest, oppdragsavtale, avslag på tilbud om stilling","B",null,null,"Personopplysninger beskyttes","Riksarkivarens forskrift del II"]
["A","e","01","A.e.01",null,"Personalforvaltning","Administrere mottak av ansatt","Mottaksplan, bestille oppretting av bruker, tildeling av utstyr/arbeidsplass, mentor, informasjonspakke, opplæring","K","5 år",null,"Personopplysninger beskyttes","Riksarkivarens forskrift del II, kortvarig administrativ interesse for enkelttilfelle"]
["A","e","02","A.e.02",null,null,"Administrere arbeidsordning","Avtale om arbeidssted, avtale om arbeidstid, individuell arbeidsplan, vaktplan","K","60 år",null,"Personopplysninger beskyttes","Riksarkivarens forskrift del II, administrativ interesse opphører med arbeidsforholdet"]
["A","e","03","A.e.03",null,null,"Administrere kortere fravær og ferieavvikling","Fravær uten betydning for den ansattes pensjonsforhold, kortere permisjon med lønn, velferdspermisjon med lønn, søknad om overføring, søknad om forskudd, søknad om utsettelse, inndragning","K","2 år",null,"Personopplysninger beskyttes","Riksarkivarens forskrift del II"]
["A","e","04","A.e.04",null,null,"Administrere lærlinger","Lærlingkontrakt, oppfølging, dialog med fylkeskommune, intern opplæringsplan, fagprøve","B",null,null,"Personopplysninger beskyttes","Riksarkivarens forskrift del II"]
["A","e","05",{"$f":"A45&\".\"&B45&\".\"&C45","v":"A.e.05"},null,null,"Administrere praktikanter og personer i arbeidsforberedende trening (AFT)","Kontrakt/praksisavtale","B",null,null,"Personopplysninger beskyttes","Riksarkivarens forskrift del II"]
["A","e","06","A.e.06",null,null,"Forlenge midlertidig ansettelse","Anmodning om forlengelse, forlengelsesbrev, beregning av forlenget stipendperiode, melding om forlenget ansettelse, ny avtale","B",null,null,"Personopplysninger beskyttes","Riksarkivarens forskrift del II"]
["A","e","07","A.e.07",null,null,"Behandle søknad om permisjon","Fravær med betydning for den ansattes pensjonsforhold, søknad","B",null,null,"Personopplysninger beskyttes","Riksarkivarens forskrift del II"]
["A","e","08","A.e.08",null,null,"Behandle søknad om personlig kompetanseopprykk","Søknad, oppnevning av komité, vurdering, merknad til vurdering, klage","B",null,null,"Personopplysninger beskyttes","Riksarkivarens forskrift del II"]
["A","e","09","A.e.09",null,null,"Behandle søknad om endring i stillingsforhold","Søknad","B",null,null,"Personopplysninger beskyttes","Riksarkivarens forskrift del II"]
["A","e","10","A.e.10",null,null,"Administrere sidegjøremål og bierverv","Melding om sidegjøremål, melding om eierinteresse, melding om bierverv, avtale, avslag, unntak av sidegjøremål/bierverv fra offentlighet","B",null,null,"Personopplysninger beskyttes","Betydning for den ansattes forhold til arbeidsgiver"]
["A","e","11","A.e.11",null,null,"Forvalte ansattmobilitet","Søknad, avtale, oppfølging, tildeling av midler, rapportering","B",null,"F2","Personopplysninger beskyttes","Dokumenterer samarbeid med andre institusjoner"]
["A","e","12","A.e.12",null,null,"Følge opp sykefravær","Sykmelding, referat fra dialogmøte, oppfølgingsplan, kartlegging av tilretteleggingsbehov, tilretteleggingstiltak, arbeidsevnevurdering, IA-tiltak (Inkluderende arbeidsliv), rapport","K","10 år",null,"Personopplysninger beskyttes","Riksarkivarens forskrift del II"]
["A","e","13","A.e.13",null,null,"Følge opp ansatte ved arbeidsulykke, yrkesskade eller yrkessykdom","Skademelding, avdekking og verifisering, rapport, tiltak, erstatningskrav","B",null,null,"Personopplysninger beskyttes","Riksarkivarens forskrift del II"]
["A","e","14","A.e.14",null,null,"Tilrettelegge arbeidsplass","Tiltak","K","10 år",null,"Personopplysninger beskyttes","Riksarkivarens forskrift del II"]
["A","e","15","A.e.15",null,null,"Behandle økonomisk tap i jobbsammenheng ","Krav om erstatning","K","5 år",null,"Personopplysninger beskyttes","Riksarkivarens forskrift del II, Bokføringsloven § 13"]
["A","e","16","A.e.16",null,null,"Behandle helt eller delvis opphør av arbeidsforhold","Oppsigelse, pensjon, avtalefestet pensjon (AFP), delvis avtalefestet pensjon, uføretrygd","B",null,null,"Personopplysninger beskyttes","Riksarkivarens forskrift del II"]
["A","e","17","A.e.17",null,null,"Behandle disiplinærsak","Referat, ordensstraff, suspensjonsvedtak, klage","B",null,null,"Personopplysninger beskyttes","Riksarkivarens forskrift del II"]
["A","e","18","A.e.18",null,null,"Behandle avskjed","Avskjedigelse, rettsdokumenter, klage, tjenestetidsattest","B",null,null,"Personopplysninger beskyttes","Riksarkivarens forskrift del II"]
["A","e","19","A.e.19",null,null,"Behandle bortgang","Registrering av bortgang (mors), interne varsler, sluttoppgjørsberegning, utlevering av personlige eiendeler og data","B",null,null,"Personopplysninger beskyttes","Riksarkivarens forskrift del II"]
["A","f","01","A.f.01",null,"Helse, miljø og sikkerhet","Utføre opplæring i helse, miljø og sikkerhet (HMS)","Opplæringsplan, deltakerliste, kursmateriell","K","10 år",null,null,"Riksarkivarens forskrift del II"]
["A","f","02","A.f.02",null,null,"Utføre arbeidsmiljøundersøkelser","Undersøkelse, rapport, tiltaksrapport","B",{"$nulls":3},"Riksarkivarens forskrift del II"]
["A","f","03","A.f.03",null,null,"Utføre løpende oppfølging av helse, miljø og sikkerhet (HMS)","HMS-rundeplan, rapport","K","10 år",null,null,"Riksarkivarens forskrift del II"]
["A","f","04",{"$f":"A63&\".\"&B63&\".\"&C63","v":"A.f.04"},null,null,"Følge opp strålevern","Oppnevning av strålevernskoordinator, dosimetri, avhending av radioaktivt avfall","B",{"$nulls":3},"Riksarkivarens forskrift del II"]
["A","f","05","A.f.05",null,null,"Føre tilsyn med helse, miljø og sikkerhet (HMS)","Plan, dokumentasjon, rapport","B",{"$nulls":3},"Riksarkivarens forskrift del II"]
["A","f","06",{"$f":"A65&\".\"&B65&\".\"&C65","v":"A.f.06"},null,null,"Håndtere avvik","Avvik fra gjeldende regler, rutiner og prosedyrer - registrering, oppfølging","K","10 år",null,null,"Riksarkivarens forskrift del II"]
["A","f","07","A.f.07",null,null,"Håndtere hendelse","Uønsket og uventet hendelse - registrering, oppfølging","K","10 år",null,null,"Riksarkivarens forskrift del II"]
["A","f","08","A.f.08",null,null,"Håndtere konflikt","Dokumentasjon, oppfølging","B",null,null,"Personopplysninger beskyttes","Riksarkivarens forskrift del II"]
["A","f","09","A.f.09",null,null,"Behandle varsling av kritikkverdige forhold","Varsel, dokumentasjon, referat, tiltak, svar til varsler, sluttrapport","B",null,null,"Personopplysninger beskyttes","Riksarkivarens forskrift del II"]
["A","g","01","A.g.01",null,"Sikkerhet og beredskap","Utarbeide og vedlikeholde sikkerhet- og beredskapsstrategi ","Strategidokument, krisedokumentasjon","B",{"$nulls":3},"Riksarkivarens forskrift del II"]
["A","g","02","A.g.02",null,null,"Utarbeide overordnede risiko- og sårbarhetsvurderinger","Risiko- og sårbarhetsanalyse (ROS), vurdering av personvernkonsekvenser (Data Protection Impact Assessment, DPIA)","B",{"$nulls":3},"Riksarkivarens forskrift del II"]
["A","g","03","A.g.03",null,null,"Planlegge gjennomføring av sikkerhets- og beredskapsarbeid","Beredskapsplan, kriseplan, evakueringsplan, referat, rapport, sikkerhetsrevisjon, kontinuitetsplan","B",{"$nulls":3},"Riksarkivarens forskrift del II"]
["A","g","04","A.g.04",null,null,"Gjennomføre beredskapsøvelse","Referat, program, plan, rapport, evaluering, samhandling med eksterne","K","10 år",null,null,"Riksarkivarens forskrift del II"]
["A","g","05","A.g.05",null,null,"Håndtere sikkerhetsavvik","Avvik fra gjeldende regler, rutiner og prosedyrer - registrering, oppfølging","K","10 år",null,"Personopplysninger beskyttes","Riksarkivarens forskrift del II"]
["A","g","06","A.g.06",null,null,"Håndtere sikkerhetshendelse","Uønsket og uventet hendelse - registrering, oppfølging","B",null,"F1","Personopplysninger beskyttes","Riksarkivarens forskrift del II"]
["A","h","01","A.h.01",null,"Bygg- og eiendomsforvaltning","Styre eiendomsforvaltning","Strategidokument","B",{"$nulls":3},"Riksarkivarens forskrift del II"]
["A","h","02","A.h.02",null,null,"Styre bærekraft og miljø","Strategidokument, miljøtiltaksplan","B",{"$nulls":3},"Riksarkivarens forskrift del II"]
["A","h","03","A.h.03",null,null,"Drifte og vedlikeholde bygninger og anlegg","Renholdsplan, vaktholdsplan, driftsplan, energibruksanalyse, parkeringsplan, arealbruksplan","K","10 år",null,null,"Riksarkivarens forskrift del II"]
["A","h","04","A.h.04",null,null,"Forvalte bygninger og anlegg","Bygging, ombygging, utvidelse, behovsanalyse, forprosjekt, detaljprosjekt, arealplan, ikke antatte tilbud, prosjektplan, risiko- og sårbarhetsanalyse (ROS), teknisk dokumentasjon, evaluering, arbeidstegning, tegning og beskrivelse av oppbygging og kvalitet, overtakelsesdokumentasjon, avtale om leie av areal/bygning, avtale om utleie av areal/bygning","B",null,"F1, F2",null,"Administrativ interesse utover samtid, historisk interesse"]
["A","h","05","A.h.05",null,null,"Administrere romreservasjon","Søknad, dokumentasjon","K","2 år",null,null,"Riksarkivarens forskrift del II"]
["A","h","06","A.h.06",null,null,"Drifte og vedlikeholde inventar, utstyr og transportmidler","Behovsanalyse, driftsavtale, supportavtale, vedlikeholdsplan","K","10 år",null,null,"Riksarkivarens forskrift del II"]
["A","h","07",{"$f":"A81&\".\"&B81&\".\"&C81","v":"A.h.07"},null,null,"Forvalte kunstsamling og utsmykning av bygninger og anlegg","Register, konservering, restaurering, innlånsavtale, utlånsavtale","B",null,"F1, F2",null,"Administrativ interesse utover samtid, historisk interesse"]
["A","i","01","A.i.01",null,"Anskaffelse av varer og tjenester","Avklare behov","Behovsbeskrivelse, budsjettramme","K","10 år",null,null,"Riksarkivarens forskrift del II"]
["A","i","02","A.i.02",null,null,"Forberede og gjennomføre anskaffelse av varer og tjenester","Markedsundersøkelse/ -dialog, befaring, finansiering, kravspesifikasjon, konkurransegrunnlag, risiko- og sårbarhetsanalyse (ROS), anbudsdokument, tilbud, dialog med tilbydere, evaluering, tildeling, meddelelse om valg, klage, avtale, anskaffelsesprotokoll","K","Vurderes i den enkelte saken, minimum 5 år",null,null,"Riksarkivarens forskrift del II. Institusjonene gjør egne vurderinger, basert på levetid for avtalen eller gjenstanden/tjenesten. Bevaring kan også vurderes. Eventuell historisk interesse for anskaffelsen vil ha betydning for vurderingen."]
["A","i","03","A.i.03",null,null,"Bestille varer","Spesifikasjon, rekvisisjon, godkjenning, bestilling, ordrebekreftelse, varemottak, reklamasjon","K","10 år",null,null,"Riksarkivarens forskrift del II"]
["A","i","04","A.i.04",null,null,"Følge opp avtaler","Avtale, behovsavklaring, revidert avtale, varsel om prisregulering","K","Vurderes i den enkelte saken, minimum 5 år",null,null,"Riksarkivarens forskrift del II. Institusjonene gjør egne vurderinger, basert på levetid for avtalen eller gjenstanden/tjenesten. Bevaring kan også vurderes."]
["A","i","05","A.i.05",null,null,"Drive innkjøpsstøtte","Behovsmelding, rådgivning, tilbakemelding om avtale","K","2 år",null,null,"Riksarkivarens forskrift del II"]
["A","j","01","A.j.01",null,"Informasjons- og dokumentasjons-forvaltning","Styre virksomhetens data, informasjon og dokumentasjon","Strategidokument, instruks for informasjonssikkerhet, instruks for personvern, politikk og rutine for tildeling av tilgang, risiko- og sårbarhetsanalyse (ROS), vurdering av personvernkonsekvenser (Data Protection Impact Assessment, DPIA), intern tilgangsstyring","B",{"$nulls":3},"Riksarkivarens forskrift del II"]
["A","j","02","A.j.02",null,null,"Motta data, informasjon og dokumentasjon","Brukerstøtte, rådgivning, opplæring","K","2 år",null,"Personopplysninger beskyttes","Riksarkivarens forskrift del II"]
["A","j","03","A.j.03",null,null,"Planlegge og administrere lagring og gjenbruk av data, informasjon og dokumentasjon","Plan, bevaring- og kassasjonsplan, klassifikasjonssystem, prosedyre for å sikre korrekte data og gjenfinning, risiko- og sårbarhetsanalyse (ROS), vurdering av personvernkonsekvenser (Data Protection Impact Assessment, DPIA), evaluering","B",{"$nulls":3},"Riksarkivarens forskrift del II"]
["A","j","04","A.j.04",null,null,"Tilgjengeliggjøre data, informasjon og dokumentasjon","Rutine for journalføring og offentlig journal, risiko- og sårbarhetsanalyse (ROS), vurdering av personvernkonsekvenser (Data Protection Impact Assessment, DPIA), avtale om publisering av elektronisk journal og dokumenter","B",{"$nulls":3},"Riksarkivarens forskrift del II"]
["A","j","05","A.j.05",null,null,"Behandle innsynskrav","Innsynskrav,  vedtak, klage, oversendelse til Felles klagenemnd","B","Ev. 2 år","F2",null,"Riksarkivarens forskrift del II. Innsynskrav som ikke medfører omfattende drøfting, særskilt begrunnelse eller klage kasseres automatisk dersom det er teknisk gjennomførbart."]
["A","j","06","A.j.06",null,null,"Avlevere dokumentasjon for langtidslagring","Periodisering, test av uttrekk, uttrekk, dialog med arkivdepot, kassasjonsliste, dokumentasjon, bortsetting, deponering, avlevering","B",null,"F1"]
["A","j","07",{"$f":"A93&\".\"&B93&\".\"&C93","v":"A.j.07"},null,null,"Overføre arkiv","Avtale om overføring til annet offentlig organ, avtale om overføring til privat rettssubjekt","B",{"$nulls":3},"Riksarkivarens forskrift del II"]
["A","j","08","A.j.08",null,null,"Behandle tap av arkivmateriale og uhjemlet kassasjon","Dokumentasjon","B",{"$nulls":3},"Riksarkivarens forskrift del II"]
["A","k","01","A.k.01",null,"Bibliotek","Planlegge og styre bibliotekfunksjonen","Strategidokument","B",{"$nulls":3},"Riksarkivarens forskrift del II"]
["A","k","02","A.k.02",null,null,"Utføre drift og vedlikehold","Klassifisering og registrering av anskaffelser, abonnementer, digitalisering, forvaltning og drift av databaser","K","10 år",null,null,"Riksarkivarens forskrift del II"]
["A","k","03","A.k.03",null,null,"Forvalte forskningsdataarkiv","Administrasjon av forskningsdataarkiv","B",null,"F1, F2","Personopplysninger beskyttes"]
["A","l","01","A.l.01",null,"IT-planlegging og -forvaltning","Styre IT-funksjonen","Strategidokument","B",{"$nulls":3},"Riksarkivarens forskrift del II"]
["A","l","02","A.l.02",null,null,"Planlegge og implementere IT-løsninger","Behovsanalyse, systemarkitektur, kontrakt, driftsavtale, supportavtale, testplan, evaluering","B",null,"F1, F3",null,"Administrativ interesse utover samtid"]
["A","l","03","A.l.03",null,null,"Drifte og forvalte IT-løsninger","Vedlikeholdsplan, oppdateringsplan, sikkerhetsplan, feilretting, risiko- og sårbarhetsanalyse (ROS), vurdering av personvernkonsekvenser (Data Protection Impact Assessment, DPIA), oppretting og validering av bruker, opplæring, brukerstøtte, avslutning av drift og forvaltning","K","10 år",null,null,"Riksarkivarens forskrift del II"]
["A","l","04","A.l.04",null,null,"Forvalte avtaler og systemer for forskningsdata","Avtale, vedlikeholdsplan, oppdateringsplan, sikkerhetsplan, risiko- og sårbarhetsanalyse (ROS), vurdering av personvernkonsekvenser (Data Protection Impact Assessment, DPIA), feilretting, opplæring, brukerstøtte, avslutning av drift og forvaltning","K","30 år",null,null,"Riksarkivarens forskrift del II. Lang kassasjonstid på grunn av ivaretakelse av forskningsdata og levetid for systemer"]
["A","l","05",{"$f":"A102&\".\"&B102&\".\"&C102","v":"A.l.05"},null,null,"Tilby digitale forskningsressurser","Vedlikeholdsplan, oppdateringsplan, sikkerhetsplan, feilretting, risiko- og sårbarhetsanalyse (ROS), vurdering av personvernkonsekvenser (Data Protection Impact Assessment, DPIA), opplæring, brukerstøtte, avslutning av drift og forvaltning","K","30 år",null,null,"Riksarkivarens forskrift del II. Lang kassasjonstid på grunn av ivaretakelse av forskningsdata og levetid for systemer"]
["A","l","06","A.l.06",null,null,"Tilby digitale læringsressurser","Vedlikeholdsplan, oppdateringsplan, sikkerhetsplan, feilretting, opplæring, brukerstøtte, avslutning av drift og forvaltning","K","10 år",null,null,"Riksarkivarens forskrift del II"]
["A","m","1",{"$f":"A104&\".\"&B104&\".\"&C104","v":"A.m.1"},null,"Intern kommunikasjon","Planlegge, styre og evaluere internkommunikasjonsfunksjonen","Strategidokument, retningslinjer, innholdsveiledning, plan, utredning, evaluering","B",null,"F1",null,"Riksarkivarens forskrift del II"]
["A","m","2",{"$f":"A105&\".\"&B105&\".\"&C105","v":"A.m.2"},null,null,"Planlegge og gjennomføre interne informasjonstiltak","Planlegge og gjennomføre informasjonsmøter, undersøkelser, utforme og gjennomføre interne kommunikasjonskampanjer, planlegge og gjennomføre andre interne kommunikasjonstiltak","K","10 år",null,null,"Riksarkivarens forskrift del II"]
["B","a","01","B.a.01","Forskning","Forskningsstrategi og -kvalitet","Utarbeide forskningsstrategi","Medvirkningsplan, innspill, referat, strategidokument, saksfremlegg","B",null,"F2",null,"Dokumenterer virksomhetens strategiske beslutninger"]
["B","a","02","B.a.02",null,null,"Analysere og identifisere finansieringskilder for forskning","Saksfremlegg, informasjon fra fagmiljøer","B",null,"F1",null,"Dokumenterer virksomhetens strategiske beslutninger"]
["B","a","03","B.a.03",null,null,"Informere og mobilisere om forskningsprogrammer og utlysninger","Saksfremlegg, referat, protokoll","B",null,"F1",null,"Administrativ interesse utover samtid"]
["B","a","04","B.a.04",null,null,"Prioritere potensielle forskningsprogrammer og prosjekter","Betingelser for prioritering, intern utlysning, saksfremlegg","B",null,"F2",null,"Dokumenterer virksomhetens strategiske beslutninger"]
["B","a","05","B.a.05",null,null,"Tildele interne forsknings- og utviklingsmidler og -stipend","Utlysning, søknad, vurdering, tildeling, avslag","B",null,"F1",null,"Dokumenterer virksomhetens strategiske beslutninger"]
["B","a","06",{"$f":"A111&\".\"&B111&\".\"&C111","v":"B.a.06"},null,null,"Etablere og utvikle forskningssamarbeid","Invitasjon, intensjonsbrev, Memorandum of Understanding (MOU)/intensjonsavtale, partneravtale, samarbeidsavtale, konsortiumavtale, endringsavtale, revidert/fornyet avtale, Material Transfer Agreement, mandat/formål, handlingsplan, referat, budsjett, tildelingsbrev, avslutte samarbeid","B",null,"F1",null,"Dokumenterer virksomhetens strategiske beslutninger"]
["B","a","07","B.a.07",null,null,"Forvalte midler til internasjonale stipendprogram og samarbeidsprosjekter","Intern opplæring og informasjon, utlysning, søknad, tildelingsbrev, kontrakt, rapport","B",null,"F1",null,"Administrativ interesse utover samtid"]
["B","a","08","B.a.08",null,null,"Evaluere og forbedre kvaliteten på forskningsaktiviteter og -prosjekter","Prosessdesign, statistikk, evaluering, analyse, referat","B",null,"F1",null,"Dokumenterer virksomhetens strategiske beslutninger"]
["B","a","09","B.a.09",null,null,"Støtte kvalitet i forskning","Systembeskrivelse, rutiner og retningslinjer, veiledning, forskningsgruppebeskrivelse, internasjonal overenskomst, godkjenning, evaluering, forsøksprotokoll, revisjon, rapport, monitoreringsrapport, forskningsetiske vurderinger","B",null,"F1",null,"Dokumenterer virksomhetens strategiske beslutninger"]
["B","a","10","B.a.10",null,null,"Sikre samsvar med juridiske og etiske retningslinjer","Referat, vedtak","B",null,"F1",null,"Administrativ interesse utover samtid"]
["B","a","11","B.a.11",null,null,"Opprette og administrere Advisory Board","Oppnevning, mandat, rapport","B",null,"F1",null,"Dokumenterer virksomhetens strategiske beslutninger"]
["B","a","12","B.a.12",null,null,"Følge opp rankinger","Invitasjon, datainnsending, datavalidering, rapport/kunngjøring","B",null,"F1",null,"Administrativ interesse utover samtid"]
["B","a","13","B.a.13",null,null,"Administrere politikk for åpen vitenskap","Retningslinjer for publiseringsstøtte, retningslinjer for tildeling av incentivmidler","B",null,"F1",null,"Dokumenterer virksomhetens strategiske beslutninger"]
["B","a","14","B.a.14",null,null,"Utarbeide politikk for immaterielle rettigheter","Forslag, saksfremlegg","B",null,"F1",null,"Dokumenterer virksomhetens strategiske beslutninger"]
["B","a","15",{"$f":"A120&\".\"&B120&\".\"&C120","v":"B.a.15"},null,null,"Samarbeide med Mattilsynet","Tilsynsrapport, eksporttillatelse, importtillatelse, kjøttkontrollrapport, kassasjonsvedtak, vedtak om godtgjørelse for nødhjelp til dyr, rapportering av forsøksdyr","B",null,"F1",null,"Administrativ interesse utover samtid"]
["B","a","16","B.a.16",null,null,"Styrke forskningspublisering","Analyse, handlingsplan, saksfremlegg","B",null,"F1",null,"Dokumenterer virksomhetens strategiske beslutninger"]
["B","a","17","B.a.17",null,null,"Fastsette rammer for forsknings- og utviklingstermin","Avtale","B",null,"F1",null,"Dokumenterer virksomhetens strategiske beslutninger"]
["B","a","18","B.a.18",null,null,"Tildele forsknings- og utviklingstermin","Utlysning, søknad, saksfremlegg, søknad om endring, faglig rapport","B",null,"F1, F3",null,"Administrativ interesse utover samtid"]
["B","a","19",{"$f":"A124&\".\"&B124&\".\"&C124","v":"B.a.19"},null,null,"Tildele forsknings- og utviklingstermin - oppgjør","Oppgjørsskjema","K","10 år",null,null,"Bokføringsloven § 13, administrativt behov utover bokføringsloven"]
["B","a","20","B.a.20",null,null,"Administrere program for å utvikle unge forskere","Saksfremlegg, kursplan, informasjon til fagmiljøer, evaluering","B",null,"F1",null,"Dokumenterer virksomhetens strategiske beslutninger"]
["B","a","21","B.a.21",null,null,"Opprette og administrere forskerskole","Konsortiumavtale, kontrakt, tildelingsbrev, budsjett, søknad om finansiering, oppnevning av styre, midtveisevaluering, framdriftsrapport","B",null,"F1",null,"Dokumenterer virksomhetens strategiske beslutninger"]
["B","b","01","B.b.01",null,"Forskningsprosjekt","Forvalte og tildele forskningsmidler","Saksfremlegg, informasjon til fagmiljøer","B",null,"F1"]
["B","b","02","B.b.02",null,null,"Forvalte og tildele interne forskningsmidler","Saksfremlegg, utlysning, evaluering","B",null,"F1"]
["B","b","03","B.b.03",null,null,"Forvalte prosjektsamarbeidsavtaler","Avtale, Non-disclosure Agreement, referat, revidert/fornyet avtale","B",null,"F1"]
["B","b","04","B.b.04",null,null,"Søke om midler til og administrere Senter for fremragende forskning","Søkerstøtte, søknad, avslag med evaluering, budsjett, samarbeidsavtale, kontrakt/tilsagnsbrev, framdriftsrapport, midtveisevaluering, forlengelse","B",null,"F1"]
["B","b","05","B.b.05",null,null,"Søke om midler til og administrere Senter for forskningsdrevet innovasjon","Søkerstøtte, søknad, avslag med evaluering, budsjett, samarbeidsavtale, kontrakt/tilsagnsbrev, framdriftsrapport, midtveisevaluering, forlengelse","B",null,"F1"]
["B","b","06","B.b.06",null,null,"Søke om midler til og administrere prosjekter finansiert av Norges forskningsråd","Søkerstøtte, søknad, avslag med evaluering, budsjett, samarbeidsavtale, dialog med finansiør og samarbeidspartnere, kontrakt/tilsagnsbrev, framdriftsrapport, endringsmelding midtveisevaluering, forlengelse, rapport","B",null,"F1"]
["B","b","07","B.b.07",null,null,"Søke om midler til og administrere EU-finansierte prosjekter","Søkerstøtte, søknad, avslag med evaluering, budsjett, samarbeidsavtale, dialog med finansiør og samarbeidspartnere, kontrakt/tilsagnsbrev, framdriftsrapport, endringsmelding midtveisevaluering, forlengelse, rapport","B",null,"F1"]
["B","b","08","B.b.08",null,null,"Søke om midler til og administrere andre eksternt finansierte prosjekter","Søkerstøtte, søknad, avslag med evaluering, budsjett, samarbeidsavtale, dialog med finansiør og samarbeidspartnere, kontrakt/tilsagnsbrev, framdriftsrapport, endringsmelding midtveisevaluering, forlengelse, rapport","B",null,"F1"]
["B","b","09","B.b.09",null,null,"Innhente godkjenning (regionale komiteer (REK)/Datatilsynet/Personvernombudet mv.)","Søknad, godkjenning","B",null,"F1"]
["B","b",10,"B.b.10",null,null,"Innhente tillatelse eksternt (innsamling av data mv.)","Samtykke fra forsøkspersoner, trekk av samtykke","K","Ved prosjektets avslutning","F3","Personopplysninger beskyttes","Lov om medisinsk og helsefaglig forskning, personvernforordningen"]
["B","b",11,"B.b.11",null,null,"Gjennomføre internt finansiert forskningsprosjekt","Periodisk faglig og økonomisk rapportering, sluttmelding, rapport, videre planer","B",null,"F2"]
["B","b",12,"B.b.12",null,null,"Utføre oppdragsvirksomhet (fagekspertise)","Sjekkliste for bidrags- og oppdragsfinansierte prosjekter, svar på anbud, vurdering, kontrakt/tildelingsbrev, godkjenning av kontrakt, budsjett, forlengelse, rapport","B",null,"F2"]
["B","b",13,"B.b.13",null,null,"Håndtere forskningsdata","Prinsipper og retningslinjer for håndtering av forskningsdata, datahåndteringsplan","B",null,"F2"]
["B","b",14,"B.b.14",null,null,"Gjøre forskningsetiske vurderinger","Oppnevning, lovpålagt opplæring, juridisk rådgivning, vurdering","B",null,"F1"]
["B","b",15,{"$f":"A141&\".\"&B141&\".\"&C141","v":"B.b.15"},null,null,"Håndtere avvik og behandle forskningsetiske brudd","Varsel, melding om uønskede medisinske hendelser, referat, saksfremlegg, innstilling, klage, ekstern kildeinformasjon, juridisk rådgivning","B",null,"F1"]
["B","b",16,"B.b.16",null,null,"Rapportere forskningsresultater","Rapport, forskningsmelding, deliverables","B",null,"F1"]
["B","c","01","B.c.01",null,"Forskningsstøtte","Veilede og informere","Spesialisert veiledning, opplæringsopplegg","B",null,"F2"]
["B","c","02","B.c.02",null,null,"Rapportere til nasjonalt forskningsinformasjonssystem (Cristin)","Publikasjonsliste, godkjenning fra fagmiljø, evaluering av publikasjonsform, revidert/godkjent liste, nominering av publiseringskanaler til opprykk","B",null,"F1"]
["B","c","03","B.c.03",null,null,"Opprette og vedlikeholde forskningsinfrastruktur","Utlysning av midler, bevilgning, administrere og vedlikeholde forskningsanlegg og laboratorier, administrere og vedlikeholde utstyr og databaser, tillatelser, evaluering, søkerstøtte, søknad, prosjektbeskrivelse, lisens","B",null,"F1"]
["B","c","04","B.c.04",null,null,"Publisere forskning","Søknad om støtte til publisering, vitenskapelig publikasjon, fagfellevurdering","B",null,"F1"]
["B","c","05",{"$f":"A147&\".\"&B147&\".\"&C147","v":"B.c.05"},null,null,"Publisere forskning - driftsoppgaver","Språkvask, korrektur, publiseringsbonus","K","5 år",null,null,"Bokføringsloven § 13, kortvarig administrativ interesse"]
["B","c","06","B.c.06",null,null,"Følge opp politikk for åpen vitenskap","Publisering, søknad om midler, tildeling, institusjonens tidsskrifter","B",null,"F1"]
["B","c","07",{"$f":"A149&\".\"&B149&\".\"&C149","v":"B.c.07"},null,null,"Følge opp politikk for åpen vitenskap - driftsoppgaver","Refusjon av publiseringskostnader","K","5 år",null,null,"Bokføringsloven § 13"]
["B","d","01","B.d.01",null,"Forskningsrettigheter og kommersialisering","Kommersialisere forskningsresultater","Avtale, Disclosure of Invention, oppfinneravtale, lisensavtale, bedriftsetablering","B",null,"F1"]
["B","d","02","B.d.02",null,null,"Realisere ikke-kommersielt forskningspotensiale","Referat, avtale, rapport","B",null,"F2"]
["B","d","03","B.d.03",null,null,"Forvalte interne virkemidler for innovasjon","Utlysning, jury, tildelingsbrev, rapport","B",null,"F1"]
["B","d","04","B.d.04",null,null,"Etablere og utvikle innovasjonssamarbeid","Programplan, utlysning, jury, tildelingsbrev, referat, rapport, evaluering, avtale","B",null,"F1"]
["B","d","05","B.d.05",null,null,"Følge opp politikk for immaterielle rettigheter","Registrering av opphav til forskningsideer, registrering av innmeldte forskningsideer, bedriftsetablering, copyright, Disclosure of Invention, lisensavtale, oppfinneravtale","B",null,"F2"]
["B","d","06","B.d.06",null,null,"Søke patent","Søknad, oversikt over patentsøknader, meddelt patent","B",null,"F1"]
["B","d","07","B.d.07",null,null,"Støtte studentinnovasjon","Søknad, tildeling, rapport","B",null,"F1"]
["C","a","01","C.a.01","Utdanning","Utdanningsstrategi og -kvalitet","Akkreditere og opprette studietilbud","Søknad, studieplan, emneplan, emnebeskrivelse, samarbeidsavtale, vurdering","B",null,"F1, F2"]
["C","a","02","C.a.02",null,null,"Revidere studietilbud","Revidert emnebeskrivelse, revidert studieplan, revidert emneplan, ny utdanningsplan/ emnekombinasjon","B",null,"F1, F2"]
["C","a","03","C.a.03",null,null,"Reakkreditere studietilbud","Vurdering/redegjørelse av akkrediteringskrav","B",null,"F1"]
["C","a","04","C.a.04",null,null,"Legge ned studietilbud","Begrunnelse","B",null,"F1, F2"]
["C","a","05","C.a.05",null,null,"Fastsette studieportefølje og opptaksrammer","Bestillingsbrev, forslag om endringer, orientering om vedtak","B",null,"F1, F2"]
["C","a","06","C.a.06",null,null,"Følge opp evaluering av studietilbud","Rapport, student- og kandidatundersøkelse, programrapport, emnerapport, oppfølgingsplan/tiltaksplan","B",null,"F1, F2"]
["C","a","07","C.a.07",null,null,"Administrere ordninger for arbeidsrelevans","Avtale","B",null,"F1, F2"]
["C","a","09","C.a.09",null,null,"Følge opp varsel om læringsmiljø","Varsel, dokumentasjon, tiltak, svar til varsler, sluttrapport","B"]
["C","a",10,"C.a.10",null,null,"Følge opp tilsyn","Tilsynsrapport, oppfølging av anbefalinger og vedtak","B",null,"F1, F2"]
["C","a",11,"C.a.11",null,null,"Dokumentere institusjonens systematiske kvalitetsarbeid","Egenvurderinger, dialogmøter, rapport fra ekstern fagfelle, kvalitetsdialog, oppnevning ekstern fagfelle, tiltaksliste, kvalitetsmelding, plan for periodisk evaluering, handlingsplan for læringsmiljø, rapport","B",null,"F1, F2"]
["C","a","12","C.a.12",null,null,"Opprette og administrere Advisory Board","Oppnevning, mandat, rapport","B",null,"F1"]
["C","a","13","C.a.13",null,null,"Følge opp rankinger","Invitasjon, datainnsending, datavalidering, rapport/kunngjøring","K","5 år"]
["C","a","14","C.a.14",null,null,"Inngå og følge opp utdanningssamarbeid","Intensjonsavtale, samarbeidsavtale, konsortiumavtale, referat","B",null,"F2"]
["C","a","16","C.a.16",null,null,"Opprette bidrags- og oppdragsfinansierte studietilbud","Prosjektbeskrivelse, oppdragsavtale, budsjett, godkjenning","B",null,"F2"]
["C","a","17","C.a.17",null,null,"Administrere mentorordning for studenter","Planlegging, evaluering, opplæringsopplegg","B",null,"F2"]
["C","a","18","C.a.18",null,null,"Administrere meritteringsordning for undervisere","Kriterier, oppnevning av komité, utlysning, søknad, intervju, innstilling, kunngjøring","B",null,"F1, F2"]
["C","a","19","C.a.19",null,null,"Administrere interne konkurransearenaer","Utlysning, søknad, vurdering, innstilling, tildeling","B",null,"F1"]
["C","a","20","C.a.20",null,null,"Søke om midler og administrere Senter for fremragende utdanning","Søkerstøtte, søknad, avslag med evaluering, budsjett, samarbeidsavtale, kontrakt/tilsagnsbrev, framdriftsrapport, midtveisevaluering, forlengelse","B",null,"F1, F2"]
["C","a","21",{"$f":"A175&\".\"&B175&\".\"&C175","v":"C.a.21"},null,null,"Søke om eksterne midler til utdanningsprosjekter","Søkerstøtte, søknad, avslag med evaluering, budsjett, samarbeidsavtale, kontrakt/tilsagnsbrev, kommunikasjon med finansiør og samarbeidspartnere, framdriftsrapport, midtveisevaluering, forlengelse","B",null,"F1"]
["C","a","22","C.a.22",null,null,"Forvalte midler til internasjonale stipendprogram og samarbeidsprosjekter","Utlysning, søknad, tildeling, rapport","B",null,"F1, F2"]
["C","a","23","C.a.23",null,null,"Inngå og forvalte samarbeidsavtaler med partnerinstitusjoner","Avtale om studentutveksling, avtale om lærerutveksling, avtale om praksisutveksling, referat, revidert/fornyet avtale","B",null,"F1, F2"]
["C","a","24","C.a.24",null,null,"Forvalte Erasmus +","Utlysning av midler, tildeling fra direktorat, rapport, søknad om Erasmus-charter, finansieringsplan fra direktorat, kontrakt","B",null,"F1"]
["C","a","25","C.a.25",null,null,"Forvalte internasjonale partnerskaps- og stipendprogram (utenfor Erasmus+)","Utlysning av midler, tildeling, søknad, finansieringsplan, kontrakt","B",null,"F1"]
["C","a","26","C.a.26",null,null,"Følge opp deltakelse i internasjonale samarbeidsnettverk","Referat, saksfremlegg, rapport","B",null,"F1, F2"]
["C","a","27","C.a.27",null,null,"Følge opp samarbeid med studentorganisasjoner","Retningslinjer, forvaltning, referat, utlysning av midler, søknad om midler","B",null,"F1, F2"]
["C","a","28","C.a.28",null,null,"Administrere studentombudsordning","Mandat, årsrapport","B",null,"F1"]
["C","b","01","C.b.01",null,"Opptak","Administrere opptakskomiteer","Oppnevning, referat","K","5 år",null,null,"Kortvarig administrativ interesse"]
["C","b","02","C.b.02",null,null,"Fastsette tilbudstall","Dialog med fagmiljø, stipulering, overbooking","K","5 år",null,null,"Kortvarig administrativ interesse"]
["C","b","03","C.b.03",null,null,"Gjennomføre lokalt opptak","Utlysning, søknad, dialog med fagmiljø, validering av utdanning, verifikasjon av vitnemål, tildeling av studierett, supplering og etterfylling av studieplasser, klage","K","5 år","F3","Personopplysninger beskyttes","Riksarkivarens vedtak av 07.09.2012 (2012/13354)"]
["C","b","04","C.b.04",null,null,"Gjennomføre lokalt opptak - behandle i klagenemnd","Institusjonens klagenemnd - oversendelse, dokumentasjon, vedtak","B",null,"F3","Personopplysninger beskyttes","Arkivforskriftens § 15"]
["C","b","05","C.b.05",null,null,"Gjennomføre nasjonalt opptak (Nasjonal opptaksmodell, NOM)","Innmelding av studier og opptaksrammer, utlysning, søknad, validering av utdanning, verifikasjon av vitnemål, tildeling av studierett, supplering og etterfylling av studieplasser, klage","K","10 år","F3","Personopplysninger beskyttes","Riksarkivarens vedtak av 07.09.2012 (2012/13354)"]
["C","b","06","C.b.06",null,null,"Gjennomføre nasjonalt opptak (Nasjonal opptaksmodell, NOM) - behandle i klagenemnd","Institusjonens klagenemnd - oversendelse, dokumentasjon, vedtak","B",null,"F3","Personopplysninger beskyttes","Arkivforskriftens § 15"]
["C","b","07","C.b.07",null,null,"Gjennomføre opptak til studier med opptaksprøver","Søknad, ferdighetsprøve, validering av utdanning, verifikasjon av vitnemål, klage","K","10 år","F3","Personopplysninger beskyttes","Riksarkivarens vedtak av 07.09.2012 (2012/13354)"]
["C","b","08","C.b.08",null,null,"Gjennomføre opptak til studier med opptaksprøver - behandle i klagenemnd","Institusjonens klagenemnd - oversendelse, dokumentasjon, vedtak","B",null,"F3","Personopplysninger beskyttes","Arkivforskriftens § 15"]
["C","b","09","C.b.09",null,null,"Gjennomføre opptak til utøvende og skapende studier","Utlysning, søknad, intervju, porteføljemappe, spilleprøve, prøve teori/gehør, validering av utdanning, verifikasjon av vitnemål, klage","K","10 år","F3","Personopplysninger beskyttes","Riksarkivarens vedtak av 07.09.2012 (2012/13354)"]
["C","b","10","C.b.10",null,null,"Gjennomføre opptak til utøvende og skapende studier - behandle i klagenemnd","Institusjonens klagenemnd - oversendelse, dokumentasjon, vedtak","B",null,"F3","Personopplysninger beskyttes","Arkivforskriftens § 15"]
["C","b","11","C.b.11",null,null,"Gjennomføre opptak til ph.d.-program","Søknad, vurdering fra opptakskomité, innstilling, validering av utdanning, verifikasjon av vitnemål, opptaksavtale, ph.d.-avtale, kontrakt for nærings- og offentlig ph.d., klage","B",null,"F3","Personopplysninger beskyttes"]
["C","b","12","C.b.12",null,null,"Gjennomføre opptak til ph.d.-program - behandle i klagenemnd","Institusjonens klagenemnd - oversendelse, dokumentasjon, vedtak","B",null,"F3","Personopplysninger beskyttes","Arkivforskriftens § 15"]
["C","b","13","C.b.13",null,null,"Gjennomføre opptak til etter- og videreutdanning","Utlysning, søknad, kontrakt, tildeling av studierett, deltagerliste","K","5 år","F3","Personopplysninger beskyttes","Riksarkivarens vedtak av 07.09.2012 (2012/13354)"]
["C","b","14","C.b.14",null,null,"Gjennomføre opptak til spesialistutdanning","Søknad, validering av utdanning, verifikasjon av vitnemål, klage","K","10 år","F3","Personopplysninger beskyttes","Riksarkivarens vedtak av 07.09.2012 (2012/13354)"]
["C","b","15","C.b.15",null,null,"Gjennomføre opptak til spesialistutdanning - behandle i klagenemnd","Institusjonens klagenemnd - oversendelse, dokumentasjon, vedtak","B",null,"F3","Personopplysninger beskyttes","Arkivforskriftens § 15"]
["C","b","16","C.b.16",null,null,"Gjennomføre opptak til forskerskole","Søknad, validering av utdanning, verifikasjon av vitnemål, klage","B",null,"F2","Personopplysninger beskyttes"]
["C","b","17","C.b.17",null,null,"Gjennomføre opptak til forskerskole - behandle i klagenemnd","Institusjonens klagenemnd - oversendelse, dokumentasjon, vedtak","B",null,"F3","Personopplysninger beskyttes","Arkivforskriftens § 15"]
["C","b","18","C.b.18",null,null,"Gjennomføre opptak til talentutviklingsprogram","Søknad, validering av utdanning, tildeling av stipend","K","10 år","F3","Personopplysninger beskyttes","Riksarkivarens vedtak av 07.09.2012 (2012/13354)"]
["C","b","19","C.b.19",null,null,"Behandle søknad om dispensasjon fra søknadsfrist","Søknad, klage","K","2 år","F3","Personopplysninger beskyttes","Riksarkivarens vedtak av 07.09.2012 (2012/13354)"]
["C","b","20","C.b.20",null,null,"Behandle søknad om dispensasjon fra søknadsfrist - behandle i klagenemnd","Institusjonens klagenemnd - oversendelse, dokumentasjon, vedtak","B",null,"F3","Personopplysninger beskyttes","Arkivforskriftens § 15"]
["C","b","21","C.b.21",null,null,"Behandle søknad om reservasjon av studieplass","Søknad","K","5 år","F3","Personopplysninger beskyttes","Riksarkivarens vedtak av 07.09.2012 (2012/13354)"]
["C","b","22","C.b.22",null,null,"Håndtere politiattest","Politiattest, supplerende informasjon","K","2 år","F3","Personopplysninger beskyttes","Politiattester har kortvarig gyldighet og må eventuelt leveres på nytt ved nye vurderinger i studieløpet"]
["C","b","23","C.b.23",null,null,"Trekke studier fra årets opptak","Søknad, eventuelt trekk","B",null,"F1"]
["C","b","24","C.b.24",null,null,"Gjennomføre overgang mellom studieprogram (lokalt)","Utlysning, søknad","K","5 år","F3","Personopplysninger beskyttes","Administrativ interesse opphører med studieløpet"]
["C","b","25","C.b.25",null,null,"Gjennomføre overflytting mellom institusjoner","Søknad, validering av utdanning, verifikasjon av vitnemål, tildeling av studierett, klage","K","10 år","F3","Personopplysninger beskyttes","Administrativ interesse opphører med studieløpet"]
["C","c","01","C.c.01",null,"Undervisning og læringsaktiviteter","Planlegge undervisning","Bemanningsplan, undervisningsopplegg, utstyrsregister","K","10 år",null,null,"Kortvarig administrativ interesse"]
["C","c","02","C.c.02",null,null,"Lage timeplaner","Timeplandata, dialog med fagmiljø, opprette undervisningsaktiviteter, opprette undervisningsenheter, opprette kull/klasser, revidert timeplan, publisert timeplan","K","10 år",null,null,"Kortvarig administrativ interesse"]
["C","c","03",{"$f":"A210&\".\"&B210&\".\"&C210","v":"C.c.03"},null,null,"Behandle oppmelding til undervisning","Undervisningsmelding, rangering","K","2 år","F3","Personopplysninger beskyttes","Administrativ interesse for inneværende semester og klagefrist"]
["C","c","04","C.c.04",null,null,"Utarbeide og tilgjengeliggjøre oversikt over læringsressurser","Litteraturliste, andre læringsressurser (film, opptak av forelesning mv.)","B",null,"F1"]
["C","c","05","C.c.05",null,null,"Bestille kompendier","Innholdsfortegnelse, klarering for bruk av kilder","B",null,"F2",null,"Dokumenterer lovmessig bruk av materiale til læringsressurser"]
["C","c","06","C.c.06",null,null,"Innhente og dokumentere samtykke ved opptak av undervisning","Samtykkeerklæring","K","15 år","F3","Personopplysninger beskyttes","Administrativ interesse opphører med opptakets verdi for løpende undervisning"]
["C","c","07","C.c.07",null,null,"Behandle obligatoriske læringsaktiviteter","Innlevert oppgave, gjennomført aktivitet, oppmøteliste, avtale om spesialpensum, varsel om fare for underkjenning, søknad om utsettelse, søknad om gjentak, klage","K","5 år","F3","Personopplysninger beskyttes","Administrativ interesse opphører med studieløpet"]
["C","c","08","C.c.08",null,null,"Behandle obligatoriske læringsaktiviteter - behandle i klagenemnd","Institusjonens klagenemnd - oversendelse, dokumentasjon, vedtak","B",null,"F3","Personopplysninger beskyttes","Arkivforskriftens § 15"]
["C","c","09","C.c.09",null,null,"Behandle søknad om fritak fra obligatoriske læringsaktiviteter","Søknad, dokumentasjon, klage","K","10 år","F3","Personopplysninger beskyttes","Administrativ interesse opphører med studieløpet"]
["C","c","10","C.c.10",null,null,"Behandle søknad om fritak fra obligatoriske læringsaktiviteter - behandle i klagenemnd","Institusjonens klagenemnd - oversendelse, dokumentasjon, vedtak","B",null,"F3","Personopplysninger beskyttes","Arkivforskriftens § 15"]
["C","c","11","C.c.11",null,null,"Behandle korttidsfravær fra obligatorisk undervisning og andre læringsaktiviteter","Søknad","K","2 år","F3","Personopplysninger beskyttes","Administrativ interesse for inneværende semester og klagefrist"]
["C","c","12","C.c.12",null,null,"Behandle sak ved mistanke om fusk og plagiat i tilknytning til læringsaktiviteter","Plagiatkontroll, melding","K","10 år","F3","Personopplysninger beskyttes"]
["C","c","13","C.c.13",null,null,"Behandle sak ved mistanke om fusk og plagiat i tilknytning til læringsaktiviteter - behandle i klagenemnd","Institusjonens klagenemnd - oversendelse, dokumentasjon, vedtak","B",null,"F3","Personopplysninger beskyttes","Arkivforskriftens § 15"]
["C","c","14",{"$f":"A221&\".\"&B221&\".\"&C221","v":"C.c.14"},null,null,"Inngå og følge opp avtaler med praksissted","Budsjett, finansiering, avtale, årlig bestilling av praksisplasser, referat, tildeling av midler til utviklingsprosjekter","B",null,"F1"]
["C","c","15","C.c.15",null,null,"Tilrettelegge praksis","Søknad","K","2 år","F3","Personopplysninger beskyttes","Administrativ interesse for inneværende semester og klagefrist"]
["C","c","16","C.c.16",null,null,"Behandle søknad om alternativt praksissted","Søknad","K","2 år","F3","Personopplysninger beskyttes","Administrativ interesse for inneværende semester og klagefrist"]
["C","c","17","C.c.17",null,null,"Behandle søknad om dispensasjon fra gjentakskvote for praksis","Søknad","K","2 år","F3","Personopplysninger beskyttes","Administrativ interesse for inneværende semester og klagefrist"]
["C","c","18","C.c.18",null,null,"Tildele praksisplass","Søknad, kontrakt/praksisavtale","K","2 år","F3","Personopplysninger beskyttes","Administrativ interesse for inneværende semester og klagefrist"]
["C","c","19","C.c.19",null,null,"Følge opp student i praksis","Taushetserklæring, vaksineattest, politiattest, veiledning, vurderingsrapport, midtveisevaluering, søknad om tilgang til systemer, dokumentasjon av aktive studenter","K","10 år","F3","Personopplysninger beskyttes","Administrativ interesse opphører med studieløpet"]
["C","c","20","C.c.20",null,null,"Behandle søknad om permisjon fra praksis","Søknad, dialog med praksissted, klage","K","10 år","F3","Personopplysninger beskyttes"]
["C","c","21","C.c.21",null,null,"Behandle søknad om permisjon fra praksis - behandle i klagenemnd","Institusjonens klagenemnd - oversendelse, dokumentasjon, vedtak","B",null,"F3","Personopplysninger beskyttes","Arkivforskriftens § 15"]
["C","c","22","C.c.22",null,null,"Behandle søknad om økonomisk tilskudd under praksis","Søknad, vedtak, utbetaling, refusjon","K","2 år","F3","Personopplysninger beskyttes","Administrativ interesse for inneværende semester og klagefrist"]
["C","c","23","C.c.23",null,null,"Behandle resultat fra praksis","Praksisattest, sensur","B",null,"F3","Personopplysninger beskyttes"]
["C","c","24","C.c.24",null,null,"Behandle tvil om ikke bestått praksis","Vurdering, tiltaksplan, referat, tvilsmelding, rettighetsbrev, varsel om fare for stryk, klage","B",null,"F3","Personopplysninger beskyttes"]
["C","c","25","C.c.25",null,null,"Behandle tvil om ikke bestått praksis - behandle i klagenemnd","Institusjonens klagenemnd - oversendelse, dokumentasjon, vedtak","B",null,"F3","Personopplysninger beskyttes","Arkivforskriftens § 15"]
["C","c","26","C.c.26",null,null,"Behandle avbrutt/ikke møtt praksis","Dialog med student, dialog med praksissted","K","5 år","F3","Personopplysninger beskyttes","Administrativ interesse opphører med studieløpet"]
["C","c","27","C.c.27",null,null,"Administrere feltarbeid og tokt","Forsikring, risiko- og sårbarhetsanalyse (ROS), egenerklæringsskjema","K","10 år","F3","Personopplysninger beskyttes","Administrativ interesse opphører med studieløpet"]
["C","c","28","C.c.28",null,null,"Administrere internship","Utlysning, kontrakt","B",null,"F3","Personopplysninger beskyttes","Godskrives vitnemål som annen vurdering"]
["C","c","29","C.c.29",null,null,"Administrere lab- og verkstedsundervisning/veiledning/øving","Godkjent kurs i helse, miljø og sikkerhet (HMS)","K","10 år","F3",null,"Administrativ interesse opphører med studieløpet"]
["C","c","30",{"$f":"A237&\".\"&B237&\".\"&C237","v":"C.c.30"},null,null,"Avklare opphavsrett i henhold til åndsverkloven","Studentarbeid, patent","B",null,"F1, F3"]
["C","d","01","C.d.01",null,"Oppfølging av studenter og ph.d.-kandidater","Følge opp studenter ved semesterstart","Oversikt over aktiviteter for studiestart","K","2 år"]
["C","d","02","C.d.02",null,null,"Behandle søknad om utsatt studiestart eller fritak fra obligatorisk oppmøte til studiestart","Søknad, innvilgelse, vedtak om inndratt studierett, klage","K","5 år","F3","Personopplysninger beskyttes"]
["C","d","03","C.d.03",null,null,"Behandle søknad om utsatt studiestart eller fritak fra obligatorisk oppmøte til studiestart - behandle i klagenemnd","Institusjonens klagenemnd - oversendelse, dokumentasjon, vedtak","B",null,"F3","Personopplysninger beskyttes","Arkivforskriftens § 15"]
["C","d","04","C.d.04",null,null,"Tildele stipend/økonomisk støtte til studenter","Utlysning, søknad, tildeling","K","5 år","F3","Personopplysninger beskyttes","Administrativ interesse opphører med studieløpet"]
["C","d","05","C.d.05",null,null,"Behandle refusjoner av og fritak for semesteravgift","Kvittering for betalt semesteravgift ved annen institusjon, kvittering for betalt studieavgift (etter- og videreutdanning), refusjon av beløp til Studentenes og akademikernes internasjonale hjelpefond (SAIH), klage","K","5 år","F3","Personopplysninger beskyttes","Administrativ interesse opphører med studieløpet"]
["C","d","06","C.d.06",null,null,"Bekrefte studentstatus","Forespørsel, samtykkeerklæring, bekreftelse","K","2 år","F3","Personopplysninger beskyttes","Kortvarig administrativ interesse"]
["C","d","07","C.d.07",null,null,"Oppnevne veileder for student","Veiledningsavtale","K","10 år","F3","Personopplysninger beskyttes","Administrativ interesse opphører med studieløpet"]
["C","d","08","C.d.08",null,null,"Tilrettelegge studiehverdagen","Søknad, dokumentasjon, kartlegging/ vurdering, kontrakt med studiekontakt, klage","K","10 år","F3","Personopplysninger beskyttes","Administrativ interesse opphører med studieløpet"]
["C","d","09","C.d.09",null,null,"Tilrettelegge studiehverdagen - behandle i klagenemnd","Institusjonens klagenemnd - oversendelse, dokumentasjon, vedtak","B",null,"F3","Personopplysninger beskyttes","Arkivforskriftens § 15"]
["C","d","10","C.d.10",null,null,"Behandle søknad om godkjenning av ekstern utdanning eller realkompetanse","Søknad, dokumentasjon, vurdering (faglig og administrativ), oppdatert utdanningsplan, klage","K","10 år","F3","Personopplysninger beskyttes","Administrativ interesse opphører med studieløpet"]
["C","d","11","C.d.11",null,null,"Behandle søknad om godkjenning av ekstern utdanning eller realkompetanse - behandle i klagenemnd","Institusjonens klagenemnd - oversendelse, dokumentasjon, vedtak","B",null,"F3","Personopplysninger beskyttes","Arkivforskriftens § 15"]
["C","d","12","C.d.12",null,null,"Vedlikeholde studierett og utdanningsplan","Forhåndsvarsel (tap/ inndragning av studierett, forsinket progresjon), dokumentasjon, veiledning/ progresjonssamtale, søknad om endring av kull/utvidet studierett, søknad om endring av studieprogram, sluttmelding, avslutning ved bortgang, oppdatert utdanningsplan","K","10 år","F3","Personopplysninger beskyttes","Administrativ interesse opphører med studieløpet"]
["C","d","13","C.d.13",null,null,"Behandle søknad om godkjenning av prosjektoppgave","Prosjektbeskrivelse, oppnevning av veileder, tildeling av økonomisk støtte","B",null,"F3","Personopplysninger beskyttes","Godskrives vitnemål som annen vurdering"]
["C","d","14","C.d.14",null,null,"Gi karriere-, gjennomførings- og studieveiledning","Kurstilbud, referat fra veiledning","K ","2 år",null,"Personopplysninger beskyttes","Kortvarig administrativ interesse"]
["C","d","15","C.d.15",null,null,"Behandle søknad om gyldig forfall","Søknad, klage","K ","2 år","F3","Personopplysninger beskyttes","Administrativ interesse for inneværende semester og klagefrist"]
["C","d","16","C.d.16",null,null,"Behandle søknad om gyldig forfall - behandle i klagenemnd","Institusjonens klagenemnd - oversendelse, dokumentasjon, vedtak","B",null,"F3","Personopplysninger beskyttes","Arkivforskriftens § 15"]
["C","d","17","C.d.17",null,null,"Behandle søknad om permisjon","Søknad, dokumentasjon, klage","K","10 år","F3","Personopplysninger beskyttes","Administrativ interesse opphører med studieløpet"]
["C","d","18","C.d.18",null,null,"Behandle søknad om permisjon - behandle i klagenemnd","Institusjonens klagenemnd - oversendelse, dokumentasjon, vedtak","B",null,"F3","Personopplysninger beskyttes","Arkivforskriftens § 15"]
["C","d","19","C.d.19",null,null,"Behandle søknad om hospitering","Søknad, klage","K","2 år","F3","Personopplysninger beskyttes","Kortvarig administrativ interesse"]
["C","d","20","C.d.20",null,null,"Behandle søknad om hospitering - behandle i klagenemnd","Institusjonens klagenemnd - oversendelse, dokumentasjon, vedtak","B",null,"F3","Personopplysninger beskyttes","Arkivforskriftens § 15"]
["C","d","21","C.d.21",null,null,"Behandle politiattest med merknad","Politiattest, uttalelse fra student, uttalelse fra institutt, følgebrev fra praksisadministrasjon, klage","B",null,"F3","Personopplysninger beskyttes"]
["C","d","22","C.d.22",null,null,"Behandle politiattest med merknad - behandle i klagenemnd","Institusjonens klagenemnd - oversendelse, dokumentasjon, vedtak","B",null,"F3","Personopplysninger beskyttes","Arkivforskriftens § 15"]
["C","d","23","C.d.23",null,null,"Behandle disiplinærsak","Dokumentasjon, skriftlig advarsel/ forhåndsvarsel, innstilling til institusjonens klagenemnd, klage, oversendelse av klage til Felles klagenemnd, utestengning, tap av eksamensrett, politianmeldelse","B",null,"F1, F3","Personopplysninger beskyttes"]
["C","d","24","C.d.24",null,null,"Behandle skikkethetssak","Tvilsmelding, vurderingssamtale, saksutredning, utvidet veiledning, innstilling til skikkethetsnemnd, klage","B",null,"F1,  F2, F3","Personopplysninger beskyttes"]
["C","d","25","C.d.25",null,null,"Behandle skikkethetssak - behandle i klagenemnd","Institusjonens klagenemnd - oversendelse, dokumentasjon, vedtak","B",null,"F3","Personopplysninger beskyttes","Arkivforskriftens § 15"]
["C","d","26","C.d.26",null,null,"Behandle skikkethetssak - behandle i Felles klagenemnd","Oversendelse","B",null,"F3","Personopplysninger beskyttes","Arkivforskriftens § 15"]
["C","d","27","C.d.27",null,null,"Følge opp studenter etter uønsket hendelse","Større ulykker/terrortrusler/fysisk eller psykisk skade mv., forsikring, informasjon, registrere studentdata","B",null,"F1, F3","Personopplysninger beskyttes"]
["C","d","28","C.d.28",null,null,"Følge opp påkrevet vaksinering av studenter ","Registrere i nasjonalt vaksineregister","K","2 år","F3","Personopplysninger beskyttes","Kortvarig administrativ interesse"]
["C","d","29","C.d.29",null,null,"Søke om lisens, studentlisens eller autorisasjon for helsepersonell","Søknad til Helsedirektoratet","B",null,"F3","Personopplysninger beskyttes"]
["C","d","30","C.d.30",null,null,"Informere om studentboligordninger","Avtale med studentsamskipnaden, kunngjøring","K","2 år",null,null,"Kortvarig administrativ interesse"]
["C","d","31","C.d.31",null,null,"Følge opp innreisende utvekslingsstudenter","Søknad, dokumentasjon, nominasjon, Learning Agreement, stipendutbetaling, endring av Learning Agreement, avslutning av utvekslingsopphold","K","5 år","F3","Personopplysninger beskyttes","Administrativ interesse opphører med avsluttet opphold"]
["C","d","32",{"$f":"A269&\".\"&B269&\".\"&C269","v":"C.d.32"},null,null,"Følge opp utreisende utvekslingsstudenter","Søknad, nominasjon, forhåndsgodkjenning av emner, opptaksbrev, godkjenning, Grant Agreement, utreiseinformasjon, stipendutbetaling, stipendavtale, Learning Agreement, bekreftet opphold, studentrapport (Mobility Tool), registrering i online linguistic support, tilleggsavtale/samtykke, studentrapport","K","10 år","F3","Personopplysninger beskyttes","Administrativ interesse opphører med studieløpet"]
["C","d","33","C.d.33",null,null,"Behandle søknad om internship for innreisende og utreisende utvekslingsstudenter","Learning Agreement Internship, stipendavtale, rapport, Confirmation","K","10 år","F3","Personopplysninger beskyttes","Administrativ interesse opphører med studieløpet"]
["C","d","34","C.d.34",null,null,"Følge opp studenter under Students at risk-ordningen","Dokumentasjon","B",null,"F2, F3","Personopplysninger beskyttes"]
["C","d","35","C.d.35",null,null,"Administrere reservasjon av boliger for utenlandske studenter","Avkreftelse (ikke møtt), antallsoversikt","K","2 år",null,"Personopplysninger beskyttes","Kortvarig administrativ interesse"]
["C","d","36","C.d.36",null,null,"Følge opp oppholdstillatelser og visum for utenlandske studenter","Dialog med Utlendingsdirektoratet og politiet, progresjonsrapport, søknad om forlenget studieopphold, uttalelse/ vurdering","K","15 år","F3","Personopplysninger beskyttes","Administrativ interesse opphører med studieløpet"]
["C","d","37","C.d.37",null,null,"Oppnevne veileder for ph.d.-kandidat","Veiledningsavtale, endring av veileder","B",null,"F3"]
["C","d","38","C.d.38",null,null,"Følge opp framdriftsrapporter for ph.d.-kandidat","Framdriftsrapport","K","10 år","F3","Personopplysninger beskyttes","Administrativ interesse opphører ved avslutning/gradstildeling"]
["C","d","39","C.d.39",null,null,"Gjennomføre midtveisevaluering for ph.d.-kandidat","Midtveisevaluering, oppfølgingsbrev","K","10 år","F3","Personopplysninger beskyttes","Administrativ interesse opphører ved avslutning/gradstildeling"]
["C","d","40","C.d.40",null,null,"Godkjenne opplæringsdel for ph.d.-kandidat","Søknad, dokumentasjon, klage","B",null,"F3","Personopplysninger beskyttes"]
["C","d","41","C.d.41",null,null,"Godkjenne opplæringsdel for ph.d.-kandidat - behandle i klagenemnd","Institusjonens klagenemnd - oversendelse, dokumentasjon, vedtak","B",null,"F3","Personopplysninger beskyttes"]
["C","d","42","C.d.42",null,null,"Behandle forespørsel om å fortsette på ph.d.-program uten stipendiatstilling/finansiering","Oppsigelse av stipendiatstilling, utløp av ansettelsesperiode","B",null,"F3","Personopplysninger beskyttes"]
["C","d","43","C.d.43",null,null,"Behandle melding om avslunting av ph.d.-program før oppnådd grad","Utskriving, oppsigelse av stipendiatstilling, utløp av ansettelsesperiode","B",null,"F3","Personopplysninger beskyttes"]
["C","e","01","C.e.01",null,"Vurdering","Utarbeide eksamensoppgave og sensorveiledning","Eksamensoppgave, sensorveiledning, ","B",null,"F1"]
["C","e","02","C.e.02",null,null,"Behandle oppmelding til eksamen/vurdering","Kontroll av gjentaksmulighet, kontroll av forkunnskapskrav, oppmelding","K","2 år","F3","Personopplysninger beskyttes","Administrativ interesse for inneværende semester og klagefrist"]
["C","e","03","C.e.03",null,null,"Behandle oppmelding til eksamen/vurdering for privatist","Søknad","K","5 år","F3","Personopplysninger beskyttes"]
["C","e","04","C.e.04",null,null,"Tilrettelegge ved eksamen/vurdering","Søknad, dokumentasjon, vurdering (faglig og administrativ), tiltak, klage","K","15 år","F3","Personopplysninger beskyttes","Administrativ interesse opphører med studieløpet"]
["C","e","05","C.e.05",null,null,"Tilrettelegge ved eksamen/vurdering - behandle i klagenemnd","Institusjonens klagenemnd - oversendelse, dokumentasjon, vedtak","B",null,"F3","Personopplysninger beskyttes","Arkivforskriftens § 15"]
["C","e","06","C.e.06",null,null,"Oppnevne sensor","Forespørsel, oppnevning, taushetserklæring, oppnevning av kommisjon, oppnevning av kontrollkommisjon, oppnevning av klagekommisjon","B",null,"F2"]
["C","e","07","C.e.07",null,null,"Behandle søknad om dispensasjon fra forkunnskapskrav","Søknad, klage","K","5 år","F3","Personopplysninger beskyttes"]
["C","e","08","C.e.08",null,null,"Behandle søknad om dispensasjon fra forkunnskapskrav - behandle i klagenemnd","Institusjonens klagenemnd - oversendelse, dokumentasjon, vedtak","B",null,"F3","Personopplysninger beskyttes","Arkivforskriftens § 15"]
["C","e","09","C.e.09",null,null,"Behandle søknad om dispensasjon fra gjentakskvote","Varsel om sletting av eksamensoppmelding, påminnelse, purring, søknad, klage","K","10 år","F3","Personopplysninger beskyttes","Administrativ interesse opphører med studieløpet"]
["C","e","10","C.e.10",null,null,"Behandle søknad om dispensasjon fra gjentakskvote - behandle i klagenemnd","Institusjonens klagenemnd - oversendelse, dokumentasjon, vedtak","B",null,"F3","Personopplysninger beskyttes","Arkivforskriftens § 15"]
["C","e","11","C.e.11",null,null,"Behandle søknad om dispensasjon fra oppmeldingsfrist","Søknad, klage","K","10 år","F3","Personopplysninger beskyttes"]
["C","e","12","C.e.12",null,null,"Behandle søknad om dispensasjon fra oppmeldingsfrist - behandle i klagenemnd","Institusjonens klagenemnd - oversendelse, dokumentasjon, vedtak","B",null,"F3","Personopplysninger beskyttes","Arkivforskriftens § 15"]
["C","e","13","C.e.13",null,null,"Behandle søknad om alternativt vurderingstidspunkt","Søknad, klage","K","10 år","F3","Personopplysninger beskyttes","Administrativ interesse for inneværende semester og klagefrist"]
["C","e","14","C.e.14",null,null,"Behandle søknad om alternativt vurderingstidspunkt - behandle i klagenemnd","Institusjonens klagenemnd - oversendelse, dokumentasjon, vedtak","B",null,"F3","Personopplysninger beskyttes","Arkivforskriftens § 15"]
["C","e","15","C.e.15",null,null,"Behandle søknad om utsatt eksamen/vurdering","Søknad, klage","K","10 år","F3","Personopplysninger beskyttes","Administrativ interesse for inneværende/neste semester og klagefrist"]
["C","e","16","C.e.16",null,null,"Behandle søknad om utsatt eksamen/vurdering - behandle i klagenemnd","Institusjonens klagenemnd - oversendelse, dokumentasjon, vedtak","B",null,"F3","Personopplysninger beskyttes","Arkivforskriftens § 15"]
["C","e","17","C.e.17",null,null,"Administrere ekstern eksamensavvikling","Oversikt over eksterne steder, søknad, klage","K","5 år","F3","Personopplysninger beskyttes"]
["C","e","18",{"$f":"A298&\".\"&B298&\".\"&C298","v":"C.e.18"},null,null,"Administrere ekstern eksamensavvikling - behandle i klagenemnd","Institusjonens klagenemnd - oversendelse, dokumentasjon, vedtak","B",null,"F3","Personopplysninger beskyttes","Arkivforskriftens § 15"]
["C","e","19","C.e.19",null,null,"Gjennomføre eksamen/vurdering","Kontroll av eksamenskollisjoner, publisering av eksamensdatoer, eksamensplan, oppmøteliste, besvarelse","K","5 år",null,"Personopplysninger beskyttes","Administrativ interesse for inneværende semester og klagefrist"]
["C","e","20","C.e.20",null,null,"Gjennomføre eksamen/vurdering for utøvende og skapende studier","Oversikt, forestilling/utstilling mv., program, plan for gjennomføring, avtale om bruk av lokale, annonsering","B",null,"F1, F2, F3"]
["C","e","21","C.e.21",null,null,"Administrere begrunnelse og sensur","Sensurprotokoll, endringsprotokoll, vurderingsprotokoll for vitenskapsteori og forskningsmetode, begrunnelse for karakter, kontrollsensur med besvarelse","B",null,"F1, F3","Personopplysninger beskyttes"]
["C","e","22","C.e.22",null,null,"Behandle innlevert master- og bacheloroppgave","Melding om oppgave, kontrakt, konfidensialitetsskjema, avtale om spesialpensum, oppgave, vurdering, publisering","B",null,"F2, F3","Personopplysninger beskyttes"]
["C","e","23","C.e.23",null,null,"Behandle klage på formelle feil ved eksamen/vurdering","Klage, tilsvar fra eksamensadministrator, tilsvar fra eksaminator, tilsvar fra sensor","K","5 år","F3","Personopplysninger beskyttes"]
["C","e","24","C.e.24",null,null,"Behandle klage på formelle feil ved eksamen/vurdering - behandle i klagenemnd","Institusjonens klagenemnd - oversendelse, dokumentasjon, vedtak","B",null,"F3","Personopplysninger beskyttes","Arkivforskriftens § 15"]
["C","e","25","C.e.25",null,null,"Behandle klage på sensur/eksamenskarakter","Klage, ny sensur, tredjegangs behandling ved karakteravvik, endelig sensur, trekk av klage","K","5 år","F3","Personopplysninger beskyttes"]
["C","e","26","C.e.26",null,null,"Behandle mistanke om fusk og plagiat ved eksamen/vurdering","Plagiatkontroll, sensorrapport, rapport fra eksamensvakt, redegjørelse/ uttalelse fra student, referat, orientering om oversendelse til klagenemnd, oversendelse til institusjonens klagenemnd, orientering om at sak frafalles, annullert eksamensresultat, oppdatert RUST-database, vedtak om eksamens- og undervisningsforbud","B",null,"F2, F3","Personopplysninger beskyttes"]
["C","f","01","C.f.01",null,"Grad og vitnemål","Tildele grad og kvalifikasjon","Malverk, gradfangst, vitnemålsgrunnlag, vitnemål og kvalifikasjon, Diploma Supplement","B",null,"F2, F3"]
["C","f","02","C.f.02",null,null,"Behandle søknad om sluttvurdering (utøvende og skapende studier)","Søknad, utstilling, konsert/forestilling, refleksjonsnotat","B",null,"F3"]
["C","f","03","C.f.03",null,null,"Behandle søknad om vurdering av ph.d.-avhandling","Søknad, medforfattererklæring, avhandling","B",null,"F3"]
["C","f","04","C.f.04",null,null,"Behandle errataliste","Errataliste (feilliste, endringsliste)","B",null,"F3"]
["C","f","05","C.f.05",null,null,"Bedømme ph.d.-avhandling","Oppnevning av bedømmelseskomité, habilitetserklæring, innstilling, vedtak om omarbeiding, klausulering, merknad, underkjenning, klage","B",null,"F3"]
["C","f","06","C.f.06",null,null,"Gjennomføre prøveforelesning og disputas","Oppnevning av opponenter, prøveforelesningstema, pressemelding, godkjenning av prøveforelesning, godkjenning av disputas, bekreftelsesbrev, dokumentasjon av oppnådd grad","B",null,"F3"]
["C","f","07","C.f.07",null,null,"Bedømme avhandling/ kunstnerisk utviklingsarbeidsresultat","Oppnevning av bedømmelseskomité og uavhengige sakkyndige, habilitetserklæring, innstilling, vedtak om omarbeiding, klausulering, merknad, underkjenning, klage","B",null,"F3"]
["C","f","08","C.f.08",null,null,"Behandle klage på underkjennelse av ph.d.-avhandling/ kunstnerisk utviklingsarbeidsresultat i klagenemnd","Institusjonens klagenemnd - oversendelse, dokumentasjon, vedtak","B",null,"F3","Personopplysninger beskyttes"]
["C","f","09","C.f.09",null,null,"Tildele ph.d.-grad (kreering)","Vitnemål og diplom, doktorgradstildeling, kreering","B",null,"F2, F3"]
["C","f",10,"C.f.10",null,null,"Behandle søknad om bruk av beskyttet tittel","Søknad","B",null,"F2, F3"]
["C","f",11,"C.f.11",null,null,"Verifisere vitnemål, karakterutskrift og andre utdanningsdokumenter utstedt ved egen institusjon","Henvendelse, verifisering, samtykkeerklæring","K","5 år","F3"]
["D","a","01","D.a.01","Formidling","Faglig formidling","Arrangere fagkonferanser/-seminarer","Budsjett, program, grafisk materiell, kontrakt, plan, finansiering, publikasjon, abstract, rapport","B",null,"F1, F2"]
["D","a","02","D.a.02",null,null,"Samarbeide med eksterne om formidlingsoppdrag ","Forespørsel fra ekstern virksomhet, henvendelse til ekstern virksomhet, avtale, formidlingsplan","B",null,"F1, F2"]
["D","a","03","D.a.03",null,null,"Formidle i medier","Intervju, kronikk, foredrag, populærvitenskapelig formidlingsmateriale, samtykke og rettighetshåndtering, publiseringsplan","B",null,"F2"]
["D","a","04","D.a.04",null,null,"Registrere publikasjon","Publikasjonsregistrering i nasjonalt register","B",null,"F1, F2"]
["D","b","01","D.b.01",null,"Kommunikasjon og samfunnskontakt","Utarbeide kommunikasjonsplan","Forslag, plan","B",null,"F1"]
["D","b","02","D.b.02",null,null,"Holde kontakt med redaksjoner","Intern fagekspertliste, pressekontakt, presseinvitasjon, pressemelding","B",null,"F1"]
["D","b","03","D.b.03",null,null,"Overvåke medieomtale","Statistikk, analyse, rapport","B",null,"F1"]
["D","b","04","D.b.04",null,null,"Holde samfunns- og næringslivskontakt","Kontaktregister, handlingsplan, samarbeidsavtale, referat","B",null,"F1, F2"]
["D","b","05","D.b.05",null,null,"Samarbeide med kulturaktører","Forespørsel fra ekstern virksomhet, henvendelse til ekstern virksomhet, sponsoravtale","B",null,"F1, F2"]
["D","b","06","D.b.06",null,null,"Håndtere publikumshenvendelser","Bruk av media, avtale om privat fotografering/filming","K","5 år",null,null,"Kortvarig administrativ interesse"]
["D","b","07","D.b.07",null,null,"Utvikle og vedlikeholde grafisk profil og materiell","Avtale, kontrakt, samtykke og rettighetshåndtering, profildokument","B",null,"F1, F2"]
["D","b","08","D.b.08",null,null,"Håndtere profileringsmateriell","Avtale, budsjett, bestillingsrutine","K","5 år",null,null,"Kortvarig administrativ interesse, utforming er ivaretatt i dokumentasjon av grafisk profil"]
["D","b","09","D.b.09",null,null,"Dele ut æresdoktorat","Nominasjon, offentliggjøring, utdeling","B",null,"F1, F2"]
["D","b","10","D.b.10",null,null,"Lage arrangement","Prosjektplan, markedsføringsplan, produksjonsplan, risiko- og sårbarhetsanalyse (ROS), program, grafisk materiell, deltakerliste, avtale, sikkerhetsdokumentasjon, budsjett, invitasjon, rapport","B",null,"F1"]
["D","b","11","D.b.11",null,null,"Drive alumnivirksomhet","Alumniregister, kommunikasjon til alumni","B",null,"F1","Personopplysninger beskyttes"]
["D","b","12","D.b.12",null,null,"Gjennomføre markedsføringstiltak","Strategi og kanalvalg, målgruppevalg, plan for gjennomføring, markedsføringsmateriell","B",null,"F1, F2"]
["D","b","13","D.b.13",null,null,"Tildele pris","Utlysning, nominasjon, innstilling, utdeling","B",null,"F1"]
["D","b","14","D.b.14",null,null,"Formidle til skoler","Undervisningsopplegg, undervisningmateriell, avtale om besøk, markedsføring av formidlingsopplegg","B",null,"F2"]
["D","b","15","D.b.15",null,null,"Gi kommunikasjonsfaglig veiledning og støtte","Informasjon om kurs, opplæringsopplegg og veiledning for tale/presentasjon/innlegg, mal for kommunikasjonsaktivitet","K","5 år",null,null,"Kortvarig administrativ interesse"]
["D","b","16","D.b.16",null,null,"Rekruttere studenter","Aktivitetsplan, budsjett, markedsføringsgrunnlag, materiell, samtykke og rettighetshåndtering, avtale om besøk, avtale om deltakelse på eksternt arrangement, opplegg for studentambassadører","B",null,"F2"]
["D","b","17","D.b.17",null,null,"Markedsføre og selge etter- og videreutdanningstilbud","Strategidokument, handlingsplan, budsjett, salgsplan","B",null,"F1"]
["D","b","18","D.b.18",null,null,"Lage semesterstartsarrangement","Invitasjon, samarbeidsavtale, opplæringsopplegg, fadderopplegg, korrespondanse med linjeforeninger","K","5 år",null,null,"Kortvarig administrativ interesse, omfattes også av kommunikasjonsplaner"]
["D","c","01","D.c.01",null,"Utstillinger og forestillinger","Utarbeide strategi for utstillinger og forestillinger","Strategidokument","B",null,"F1"]
["D","c","02","D.c.02",null,null,"Utvikle og produsere utstilling og forestilling","Budsjett, utstillings-/forestillingsproduksjon, markedsføringsplan, konsept, prosjektplan, avtale, gjenstandsutvalg og -innlån, grafisk materiell","B",null,"F1"]
["D","c","03","D.c.03",null,null,"Formidle utstilling og forestilling","Avtale om besøk, plan for omvisning, arrangementsplan, besøksstatistikk","B",null,"F1"]
["D","c","04","D.c.04",null,null,"Leie ut utstilling/objekter","Leieavtale, budsjett, håndteringsplan, tilstandsrapport, vedlikeholdsplan, turnéplan, forsikring, transport, tollbehandling, mottaksrapport","B",null,"F1"]
["E","a","01","E.a.01","Museum og samling","Samlingsforvaltning","Utarbeide samlingsstrategi","Strategi for innsamling og forvaltning, risiko- og sårbarhetsanalyse (ROS), årsplan, referat, evaluering, rapport, samlingsplan, prioritering og beredskapsplan, flytting deaksesjon, kassering, statistikk, rapport","B",null,"F1"]
["E","a","02","E.a.02",null,null,"Utarbeide samlingsstrategi for bibliotek","Handlingsplan, plan for bevaring og kassering","B",null,"F1"]
["E","a","03","E.a.03",null,null,"Utarbeide og vedlikeholde kvalitetssystem for bibliotek","Rutine, kvalitetspolitikk","B",null,"F1"]
["E","a","04","E.a.04",null,null,"Kuratere samlinger","Inntaksvurdering, katalogisering, vurdering av tilstand/skade, vurdering av kassasjon/avhending","B",null,"F1"]
["E","a","05","E.a.05",null,null,"Motta objekt til samlingene","Funnskjema, bekreftelse på mottak, prosjektavtale, analyse, dokumentasjon, kartavmerking, mottak av innleveringspliktige gjenstander, deponeringsavtale, artsidentifisering og -navngivning, feltinnsamling, aksesjon, kvittering, takkebrev, diplom, finnerlønn","B",null,"F1"]
["E","a","06","E.a.06",null,null,"Administrere flytting av gjenstander over landegrenser","Repatriering, eksporttillatelse, importtillatelse, rådgivning til Tollvesenet","B",null,"F1"]
["E","a","07","E.a.07",null,null,"Vedlikeholde og konservere objekter","Konserveringsrapport, oversikt over objekter, sikrings- og bevaringsdokumentasjon, analyser, klimalogger, forebyggingstiltak, avtale med bokbinder","B",null,"F1"]
["E","a","08","E.a.08",null,null,"Rapportere","Tilstandsrapport for lokaler/magasiner","B",null,"F1, F2"]
["E","a","09","E.a.09",null,null,"Administrere analyser","Behandling og vedtak, vurdering av klausulering, analyse og uttak av prøver, rapport, analyseresultater","B",null,"F1, F2"]
["E","a",10,"E.a.10",null,null,"Administrere gave og donasjon","Donasjonsliste, aksesjon, donasjon av utstillings- og undervisningsrekvisita, søknad og tillatelse til donasjon av gjenstander som er ulovlige i Norge, donasjonsavtale","B",null,"F1"]
["E","a",11,"E.a.11",null,null,"Forvalte inn- og utlån av gjenstander og samlinger","Innlånsavtale, retur av innlån, søknad om utlån, forsikring, utlånsstatistikk, avtale, skjema, tilstandsrapport, eksport- og importtillatelse","B",null,"F1"]
["E","a",12,"E.a.12",null,null,"Forvalte universitetsmuseenes samarbeidstiltak","UniMus, samarbeidsavtale, arkitektur/ oppgradering, handlingsplan, innkalling, referat, kvalitetssystem, kvalitetssikring/ utvikling/ daglig drift av samlingsdatabaser, referat fra fag- og ekspertgruppe","B",null,"F1"]
["E","a",13,"E.a.13",null,null,"Gi adgang til gjesteforskere","Adgangsskjema, korrespondanse","K","5 år"]
["E","a",14,"E.a.14",null,null,"Administrere vedlikehold og konservering","Plan for bevaring av eldre samlinger","B",null,"F1, F2"]
["E","a",15,"E.a.15",null,null,"Utføre paleontologiske utgravninger","Søknad om tillatelse, tillatelse, budsjett, sponsoravtale, rapport","B",null,"F1, F2"]
["E","b","01",{"$f":"A359&\".\"&B359&\".\"&C359","v":"E.b.01"},null,"Kulturminneforvaltning","Koordinere og delta i nasjonale komiteer","Innkalling, referat, drøfting","B",null,"F1"]
["E","b","02","E.b.02",null,null,"Rapportere til departement og direktorat","Bestilling, rapport","B",null,"F1"]
["E","b","03","E.b.03",null,null,"Sikre og ivareta kulturminner","Søknad til Riksantikvaren, rapport til Riksantikvaren, innlevering av funn, innspill til sikringsprosjekter","B",null,"F1"]
["E","b","04","E.b.04",null,null,"Behandle areal- og utbyggingssaker og utføre arkeologiske forvaltningsundersøkelser","Uttalelse, planbeskrivelse, kartmateriale, vedtak, prosjektplan, budsjett, referat, søknad om dispensasjon, svar med tilråding, vedtak, klage, bestilling av tiltak, §10-vedtak, aksept av §10-vedtak, kontrakt, arkeologiske registreringer/ arkivering i TOPARK, analyse, svar på analyse,rapport","B",null,"F1, F2"]
["E","b","05","E.b.05",null,null,"Administrere arkeologiske forskningsutgravninger","Søknad, økonomisk støtte, planlegge feltarbeid, resultater/ dokumentasjon, analyse, konservering, rapport, arkeologiske registreringer/ arkivering i TOPARK","B",null,"F1, F2"]
["E","b","06","E.b.06",null,null,"Administrere arkeologiske sikringsutgravninger","Søknad, økonomisk støtte, befaring, fotodokumentasjon, dokumentasjon til bevaringsprogram, analyse, svar på analyse, vedtak, rapport, arkeologiske registreringer/ arkivering i TOPARK, korrespondanse med Riksantikvaren","B",null,"F1, F2"]
["E","b","07","E.b.07",null,null,"Administrere feltundersøkelse","Prosjektplan, dokumentasjon, HMS-dokumentasjon, referat, søknad om finansiering, kontrakt, budsjett, innmåling, proveniens, tillatelse, rapport","B",null,"F1"]
["E","b","08","E.b.08",null,null,"Behandle brudd på Lov om kulturminner","Anmeldelse, utarbeide kostnadsoverslag for erstatningssum","B",null,"F1, F2"]
["E","b","09","E.b.09",null,null,"Gi kulturminnefaglige råd","Uttalelse, rådgivning, uforpliktende kostnadsoverslag, uforpliktende kalkyle på utgravning, uforpliktende kostnadskalkyle til tiltakshaver før utgravning\n","B",null,"F1, F2"]
["E","b",10,"E.b.10",null,null,"Utføre arkeologiske forundersøkelser (kulturminner under vann)","Søknad om tiltak, arealplan, vurdering, befaring, rapport","B",null,"F1, F2"]
["E","c","01","E.c.01",null,"Naturforvaltning","Behandle areal- og utbyggingssaker","Uttalelse, planbeskrivelse, kartmateriale, vedtak, prosjektplan, budsjett, referat","B",null,"F1, F2"]
["E","c","02","E.c.02",null,null,"Administrere feltundersøkelse","Søknad, kontrakt/avtale, budsjett, prosjektplan, dokumentasjon, rapport, HMS-dokumentasjon, referat","B",null,"F1"]
["E","c","03","E.c.03",null,null,"Gi naturområdefaglige råd","Rådgivning","B",null,"F1, F2"]
["E","c","04","E.c.04",null,null,"Sikre og ivareta naturområder","Geologisk rådgivning ved byggeprosjekt, faglig rådgivning ved naturkriminalitet, vurdering av politibeslag, søknad om midler, dokumentasjon, statistikk, rapport","B",null,"F1, F2"]
["E","d","01","E.d.01",null,"Samlingsforvaltning - spesialsamlinger og  depotarkiv ","Forvalte utlån og utleie av materiale (unika)","Forespørsel/henvendelse, forsikring, oversendelsesbrev, kontrakt/avtale, tillatelse, rådgivning/veiledning, søknad om tilgang til taushetsbelagt eller klausulert materiale, taushetserklæring, samtykkeerklæring, ","B",null,"F1, F2"]
["E","d","02","E.d.02",null,null,"Forvalte bibliotek- og arkivmateriale","Forespørsel/henvendelse vedr deponering/ donasjon/ avlevering, takkebrev, referansetjenester og veiledning, vurdering av historisk verdi, kvittering, kontrakt for donasjon/ avlevering / deponering, aksesjon, katalog, digitalisering, tilgjengeliggjøring, konservering","B",null,"F1, F2"]
["E","d","03","E.d.03",null,null,"Vurdere begjæring om partsinnsyn og innsyn for forskningsformål","Innsynsbegjæring, dokumentasjon, tillatelse fra arkivskaper/-eier, vedtak, klage, kontrakt, taushetserklæring, samtykkeerklæring","B",null,"F1"]
["E","d","04","E.d.04",null,null,"Vedlikeholde og kvalitetssikre aktørregister","Føre i aktørregister","B",null,"F1"]
["E","d","05","E.d.05",null,null,"Samarbeide med fagmiljø innen bibliotek og arkiv","Invitasjon, deltakelse","B",null,"F1"]